fUST/lending_fUST_20251020
["ID","MTS","AMOUNT","RATE_DAILY","PERIOD"]
[391875517,1760942635217,5000.0,0.00024141,2]
[391875518,1760942640801,283.44,0.00021868,2]
[391875519,1760942641222,561.12980031,0.00023856,2]
[391875520,1760942641246,5.74019969,0.00023856,2]
[391875521,1760942657890,2838.4394177,0.00024141,2]
[391875522,1760942667474,2224.87516573,0.00020864,2]
[391875523,1760942716534,272.61,0.00021858,2]
[391875524,1760942717079,545.23,0.00023845,2]
[391875526,1760942796324,262.2,0.00021549,2]
[391875527,1760942796830,524.41,0.00023508,2]
[391875528,1760942876736,252.19,0.00021447,2]
[391875529,1760942877153,504.39,0.00023396,2]
[391875530,1760942956727,242.56,0.00021422,2]
[391875531,1760942957592,485.13,0.00023369,2]
[391875532,1760942965169,1842.23521688,0.00024141,2]
[391875533,1760942965196,2065.41874056,0.00024141,2]
[391875534,1760942973077,3414.03653426,0.00024141,2]
[391875559,1760943032597,-163.21674625,0.000245,2]
[391875561,1760943032607,-300.0,0.000246,2]
[391875564,1760943032616,-150.0,0.000246,2]
[391875565,1760943032625,-653.86969548,0.000246,2]
[391875567,1760943032635,-859.75149822,0.00024853,2]
[391875569,1760943032645,-2677.0,0.00025,10]
[391875571,1760943032654,-172.5,0.000252,2]
[391875572,1760943032664,-1200.0,0.00025316,2]
[391875573,1760943032673,-195.0,0.000258,2]
[391875574,1760943032682,-1695.2230998,0.00026133,2]
[391875575,1760943032692,-3987.0621697,0.00026133,2]
[391875576,1760943032702,-1380.63884343,0.00026333,2]
[391875577,1760943032712,-217.5,0.000264,2]
[391875578,1760943032721,-300.0,0.00026571,2]
[391875579,1760943032731,-300.0,0.00026571,2]
[391875580,1760943032741,-300.0,0.00026571,2]
[391875582,1760943032750,-300.0,0.00026571,2]
[391875583,1760943032759,-1200.0,0.00026573,2]
[391875584,1760943032769,-666.0,0.00026668,2]
[391875587,1760943032779,-663.559795,0.00026676,2]
[391875589,1760943032792,-240.0,0.00027,2]
[391875591,1760943032802,-3940.18793832,0.00027364,2]
[391875593,1760943032814,-1059.81206168,0.00027364,2]
[391875595,1760943032824,-1680.0,0.0002754,2]
[391875597,1760943032833,-225.0,0.000276,2]
[391875599,1760943032843,-217.0188451,0.00027964,2]
[391875600,1760943032853,-420.0,0.00028739,2]
[391875601,1760943032862,-300.0,0.00028739,2]
[391875602,1760943032872,-300.0,0.00028739,2]
[391875603,1760943032881,-1680.0,0.00028741,2]
[391875604,1760943032891,-155.601027,0.00028814,2]
[391875605,1760943032901,-500.0,0.00028989,30]
[391875606,1760943032911,-500.0,0.00028989,30]
[391875607,1760943032920,-552.99611935,0.00028989,30]
[391875608,1760943032930,-199.0,0.00028989,7]
[391875609,1760943032940,-903.39944174,0.0002899,2]
[391875610,1760943032950,-376.09577845,0.00029061,2]
[391875611,1760943033131,-168.78,0.00029263,8]
[391875612,1760943033154,-402.9601108,0.00029524,2]
[391875613,1760943033164,-161.16596642,0.00029698,23]
[391875614,1760943033174,-364.00750114,0.00029748,2]
[391875615,1760943033184,-654.7,0.0002977,10]
[391875616,1760943033194,-500.0,0.00029779,2]
[391875617,1760943033207,-500.0,0.00029779,2]
[391875618,1760943033217,-500.0,0.00029779,2]
[391875619,1760943033227,-500.0,0.00029779,2]
[391875620,1760943033237,-500.0,0.00029779,2]
[391875621,1760943033246,-500.0,0.00029779,2]
[391875622,1760943033256,-500.0,0.00029779,2]
[391875623,1760943033266,-500.0,0.00029779,2]
[391875624,1760943033276,-500.0,0.00029779,2]
[391875625,1760943033286,-500.0,0.00029779,2]
[391875626,1760943033296,-500.0,0.00029779,2]
[391875627,1760943033306,-500.0,0.00029779,2]
[391875628,1760943033316,-500.0,0.00029779,2]
[391875629,1760943033326,-500.0,0.00029779,2]
[391875630,1760943033336,-500.0,0.00029779,2]
[391875631,1760943033346,-500.0,0.00029779,2]
[391875632,1760943033356,-500.0,0.00029779,2]
[391875633,1760943033367,-500.0,0.00029779,2]
[391875634,1760943033377,-500.0,0.00029779,2]
[391875635,1760943033387,-500.0,0.00029779,2]
[391875636,1760943033396,-500.0,0.00029779,2]
[391875637,1760943033406,-500.0,0.00029779,2]
[391875638,1760943033416,-583.39650596,0.00029779,2]
[391875639,1760943033425,-500.0,0.00029779,2]
[391875640,1760943033435,-500.0,0.00029779,2]
[391875641,1760943033444,-500.0,0.00029779,2]
[391875642,1760943033454,-500.0,0.00029779,2]
[391875643,1760943033467,-500.0,0.00029779,2]
[391875644,1760943033476,-500.0,0.00029779,2]
[391875645,1760943033485,-500.0,0.00029779,2]
[391875646,1760943033495,-253.61662182,0.00029779,2]
[391875647,1760943033505,-500.0,0.00029779,2]
[391875648,1760943033515,-500.0,0.00029779,2]
[391875649,1760943033525,-500.0,0.00029779,2]
[391875650,1760943033535,-500.0,0.00029779,2]
[391875651,1760943033544,-500.0,0.00029779,2]
[391875652,1760943033554,-500.0,0.00029779,2]
[391875653,1760943033565,-500.0,0.00029779,2]
[391875654,1760943033576,-500.0,0.00029779,2]
[391875655,1760943033586,-500.0,0.00029779,2]
[391875656,1760943033596,-500.0,0.00029779,2]
[391875657,1760943033606,-500.0,0.00029779,2]
[391875658,1760943033616,-273.035269,0.00029779,2]
[391875659,1760943033626,-500.0,0.00029779,2]
[391875660,1760943033637,-500.0,0.00029779,2]
[391875661,1760943033648,-500.0,0.00029779,2]
[391875662,1760943033658,-500.0,0.00029779,2]
[391875663,1760943033668,-500.0,0.00029779,2]
[391875664,1760943033678,-500.0,0.00029779,2]
[391875665,1760943033689,-500.0,0.00029779,2]
[391875666,1760943033699,-500.0,0.00029779,2]
[391875667,1760943033710,-500.0,0.00029779,2]
[391875668,1760943033719,-500.0,0.00029779,2]
[391875669,1760943033729,-500.0,0.00029779,2]
[391875670,1760943033738,-500.0,0.00029779,2]
[391875671,1760943033748,-500.0,0.00029779,2]
[391875672,1760943033759,-500.0,0.00029779,2]
[391875673,1760943033769,-500.0,0.00029779,2]
[391875674,1760943033779,-500.0,0.00029779,2]
[391875675,1760943033789,-500.0,0.00029779,2]
[391875676,1760943033799,-500.0,0.00029779,2]
[391875677,1760943033808,-325.44792515,0.00029779,2]
[391875678,1760943033821,-225.61808757,0.00029779,2]
[391875679,1760943033830,-247.06281385,0.00029779,2]
[391875680,1760943033840,-500.0,0.00029779,2]
[391875681,1760943033850,-500.0,0.00029779,2]
[391875682,1760943033860,-312.85210129,0.00029779,2]
[391875683,1760943033870,-77258.01630951,0.0002978,2]
[391875684,1760943033881,-170.48473676,0.00029789,2]
[391875685,1760943033891,-500.0,0.00029873,5]
[391875686,1760943033901,-500.0,0.00029873,5]
[391875687,1760943033910,-610.07513963,0.00029873,5]
[391875688,1760943033919,-500.0,0.00029873,5]
[391875689,1760943033929,-500.0,0.00029873,5]
[391875690,1760943033938,-500.0,0.00029873,5]
[391875691,1760943033947,-500.0,0.00029873,5]
[391875692,1760943033957,-500.0,0.00029873,5]
[391875693,1760943033967,-501.58932102,0.00029873,5]
[391875694,1760943033976,-501.13589229,0.00029873,5]
[391875695,1760943033986,-574.70726404,0.00029873,5]
[391875696,1760943033995,-500.0,0.00029873,5]
[391875697,1760943034005,-500.0,0.00029873,5]
[391875698,1760943034015,-500.0,0.00029873,5]
[391875699,1760943034029,-501.12426857,0.00029873,5]
[391875700,1760943034039,-501.0076811,0.00029873,5]
[391875701,1760943034048,-500.0,0.00029873,5]
[391875702,1760943034058,-500.0,0.00029873,3]
[391875703,1760943034068,-500.0,0.00029873,5]
[391875704,1760943034077,-500.0,0.00029873,5]
[391875705,1760943034096,-309.76,0.0002988,3]
[391875706,1760943034109,-154.88,0.0002988,3]
[391875707,1760943034119,-464.69,0.0002988,3]
[391875708,1760943034129,-500.0,0.0002988,30]
[391875709,1760943034139,-238.77596579,0.0002988,30]
[391875710,1760943034149,-500.0,0.0002988,30]
[391875711,1760943034159,-530.68592944,0.0002988,30]
[391875712,1760943034168,-24096.75058091,0.0002988,2]
[391875713,1760943034183,-121624.73790709,0.0002988,2]
[391875714,1760943034192,-816.721652,0.0002988,2]
[391875715,1760943034203,-343.44133616,0.00029889,2]
[391875716,1760943034214,-181.85557187,0.00029889,2]
[391875717,1760943034224,-8261.56705533,0.0002989,2]
[391875718,1760943034240,-500.0,0.00029779,2]
[391875719,1760943034251,-297.09777289,0.0002989,2]
[391875722,1760943038401,-150.0,0.000245,2]
[391875723,1760943038412,-172.5,0.000251,2]
[391875724,1760943038422,-195.0,0.000257,2]
[391875725,1760943038433,-217.5,0.000263,2]
[391875726,1760943038443,-240.0,0.000269,2]
[391875727,1760943038457,-262.5,0.000275,2]
[391875728,1760943038467,-285.0,0.000281,2]
[391875729,1760943038477,-500.0,0.00029779,2]
[391875730,1760943038488,-2427.9,0.0002989,2]
[391875731,1760943038501,-7228.62123278,0.0002989,2]
[391875732,1760943038511,-28776.30056337,0.0002989,2]
[391875733,1760943038523,-37407.62756291,0.0002989,2]
[391875734,1760943038535,-1634.24175926,0.0002989,2]
[391875735,1760943038572,233.3,0.00021488,2]
[391875736,1760943038973,466.61,0.00023442,2]
[391875742,1760943040597,-699.91,0.00025395,2]
[391875743,1760943040607,-769.99675696,0.00027349,2]
[391875758,1760943043558,-163.21324304,0.00027349,2]
[391875759,1760943043570,-1166.51,0.00029302,2]
[391875760,1760943043581,-429.29075696,0.0002989,2]
[391875761,1760943043659,-301752.5393575,0.0002989,2]
[391875762,1760943043669,-15233.26,0.000299,7]
[391875763,1760943043679,-2351.0,0.0002996,2]
[391875764,1760943043689,-155.601027,0.0003,15]
[391875765,1760943043700,-189.38,0.00030101,2]
[391875766,1760943043710,-500.0,0.00030421,5]
[391875767,1760943043720,-574.34399189,0.00030421,5]
[391875768,1760943043730,-500.0,0.00030421,5]
[391875769,1760943043739,-500.0,0.00030421,5]
[391875770,1760943043749,-450.91181194,0.00030421,5]
[391875771,1760943043759,-597.52542925,0.00030421,5]
[391875772,1760943043770,-864.77655671,0.00030421,5]
[391875773,1760943043780,-1000.0,0.00030421,5]
[391875774,1760943043792,-500.0,0.00030421,5]
[391875775,1760943043803,-500.0,0.00030421,5]
[391875776,1760943043815,-500.0,0.00030421,3]
[391875777,1760943043824,-500.0,0.00030421,5]
[391875778,1760943043833,-1000.0,0.00030421,5]
[391875779,1760943043844,-335.25560271,0.00030432,2]
[391875780,1760943043854,-250.0,0.00030553,2]
[391875781,1760943043863,-502.79860014,0.00030968,5]
[391875782,1760943043872,-610.50807561,0.00031,120]
[391875783,1760943043882,-560.89172555,0.00031,120]
[391875784,1760943043891,-1045.51535246,0.00031,120]
[391875785,1760943043902,-183.30272066,0.00031,120]
[391875786,1760943043912,-204.00726077,0.00031,120]
[391875787,1760943043922,-587.0,0.00031084,2]
[391875788,1760943043934,-2351.0,0.00031086,3]
[391875789,1760943043943,-500.0,0.00031159,2]
[391875790,1760943043956,-619.52,0.0003125,3]
[391875792,1760943043967,-309.76,0.0003125,3]
[391875793,1760943043977,-1399.82,0.00031255,2]
[391875794,1760943043987,-982.48872259,0.0003127,2]
[391875795,1760943043999,-155.601027,0.0003131,2]
[391875796,1760943044009,-156.701887,0.0003131,2]
[391875797,1760943044020,-507.7337803,0.00031433,2]
[391875798,1760943044036,-610.50807561,0.000319,120]
[391875799,1760943044046,-560.89172555,0.000319,120]
[391875800,1760943044054,-1045.51535246,0.000319,120]
[391875801,1760943044064,-264.0,0.00031938,7]
[391875802,1760943044075,-178.0,0.00031973,2]
[391875803,1760943044085,-178.0,0.00032082,2]
[391875804,1760943044095,-367.6918536,0.00032109,2]
[391875805,1760943044107,-168.0,0.00032207,2]
[391875806,1760943044116,-1000.0,0.00032248,2]
[391875807,1760943044126,-1000.0,0.00032248,2]
[391875808,1760943044136,-1000.0,0.00032248,2]
[391875809,1760943044148,-1000.0,0.00032248,2]
[391875810,1760943044158,-411.42287777,0.00032248,2]
[391875811,1760943044168,-4214.0,0.00032291,2]
[391875812,1760943044178,-178.0,0.00032389,2]
[391875813,1760943044189,-1376.06167621,0.00032502,2]
[391875814,1760943044200,-3292.0,0.00032593,3]
[391875815,1760943044212,-155.601027,0.00032639,15]
[391875816,1760943044222,-156.701887,0.00032639,15]
[391875817,1760943044231,-4360.02802278,0.00032688,8]
[391875818,1760943044242,-1376.06167621,0.00032703,2]
[391875819,1760943044252,-264.0,0.00032808,2]
[391875820,1760943044262,-264.94433982,0.00032876,120]
[391875821,1760943044271,-2999.0,0.00032876,120]
[391875822,1760943044282,-500.0,0.00032877,5]
[391875823,1760943044292,-610.50807561,0.000329,120]
[391875824,1760943044302,-560.89172555,0.000329,120]
[391875825,1760943044311,-1045.51535246,0.000329,120]
[391875826,1760943044321,-178.0,0.0003296,2]
[391875827,1760943044331,-500.0,0.00032973,5]
[391875828,1760943044341,-500.0,0.00032973,5]
[391875829,1760943044351,-500.0,0.00032973,5]
[391875830,1760943044360,-500.0,0.00032973,5]
[391875831,1760943044370,-500.0,0.00032973,5]
[391875832,1760943044380,-500.0,0.00032973,5]
[391875833,1760943044389,-501.80162162,0.00032973,5]
[391875834,1760943044398,-500.0,0.00032973,5]
[391875835,1760943044408,-258.50824601,0.00032973,5]
[391875836,1760943044418,-500.0,0.00032973,5]
[391875837,1760943044427,-500.0,0.00032973,5]
[391875838,1760943044436,-500.0,0.00032973,5]
[391875839,1760943044445,-504.80024865,0.00032973,5]
[391875840,1760943044455,-318.37761606,0.00032973,5]
[391875841,1760943044464,-422060.62456618,0.00032988,2]
[391875842,1760943044475,-18215.186061,0.0003299,2]
[391875843,1760943044485,-1550.83731168,0.00033,2]
[391875844,1760943044494,-153.32,0.00033,2]
[391875845,1760943044503,-16926.83101974,0.00033,5]
[391875846,1760943044513,-15233.26,0.00033,14]
[391875847,1760943044522,-3354.53,0.00033,14]
[391875848,1760943044532,-1411.26,0.00033,60]
[391875849,1760943044541,-178.0,0.00033091,7]
[391875850,1760943044551,-1000.0,0.00033151,5]
[391875851,1760943044561,-178.0,0.00033161,2]
[391875852,1760943044572,-663.559795,0.00033165,2]
[391875853,1760943044584,-264.0,0.00033185,2]
[391875854,1760943044594,-165.04669864,0.000332,117]
[391875855,1760943044605,-165.04669862,0.000332,117]
[391875856,1760943044615,-178.0,0.00033202,2]
[391875857,1760943044626,-1633.12,0.00033209,2]
[391875858,1760943044636,-4359.97,0.00033221,9]
[391875859,1760943044646,-178.0,0.00033228,2]
[391875860,1760943044656,-1076.49162484,0.00033425,5]
[391875861,1760943044665,-313.72514454,0.00033521,5]
[391875862,1760943044675,-501.68618703,0.00033521,5]
[391875863,1760943044804,-501.96104475,0.00033521,5]
[391875864,1760943044815,-501.10717529,0.00033521,5]
[391875865,1760943044826,-502.37344376,0.00033521,5]
[391875866,1760943044837,-410.62875183,0.00033521,5]
[391875867,1760943044847,-500.0,0.00033521,5]
[391875868,1760943044858,-505.07238587,0.00033521,5]
[391875869,1760943044867,-502.9405513,0.00033521,5]
[391875870,1760943044878,-504.3291338,0.00033521,5]
[391875871,1760943044888,-2999.0,0.00033561,120]
[391875872,1760943044899,-823.0,0.0003362,2]
[391875873,1760943044908,-1612.0,0.00033622,3]
[391875874,1760943044918,-178.0,0.00033695,2]
[391875875,1760943044929,-178.0,0.00033749,7]
[391875876,1760943044939,-18215.186061,0.0003379,2]
[391875877,1760943044948,-1013.230428,0.000338,13]
[391875878,1760943044958,-178.0,0.00033802,2]
[391875879,1760943044968,-155.601027,0.00033807,2]
[391875880,1760943044979,-156.701887,0.00033807,2]
[391875881,1760943044988,-159.54606359,0.00033848,2]
[391875882,1760943044998,-1025.72835979,0.00033848,2]
[391875883,1760943045008,-156.096,0.00033848,2]
[391875884,1760943045017,-178.0,0.00033863,2]
[391875885,1760943045032,-2003.0,0.00033863,60]
[391875886,1760943045043,-5000.0,0.00033864,3]
[391875887,1760943045054,-610.50807561,0.000339,120]
[391875888,1760943045063,-560.89172555,0.000339,120]
[391875889,1760943045075,-1045.51535246,0.000339,120]
[391875890,1760943045085,-168.0,0.00033941,2]
[391875891,1760943045095,-155.601027,0.0003399,45]
[391875892,1760943045104,-155.601027,0.0003399,45]
[391875893,1760943045114,-155.601027,0.0003399,45]
[391875894,1760943045123,-155.601027,0.0003399,45]
[391875895,1760943045132,-155.601027,0.0003399,45]
[391875896,1760943045142,-156.701887,0.0003399,45]
[391875897,1760943045152,-156.701887,0.0003399,45]
[391875898,1760943045161,-156.701887,0.0003399,45]
[391875899,1760943045171,-156.701887,0.0003399,45]
[391875900,1760943045180,-151.0,0.00034115,30]
[391875901,1760943045189,-151.0,0.00034115,30]
[391875902,1760943045198,-213.3186526,0.00034115,30]
[391875903,1760943045207,-152.89452512,0.00034115,30]
[391875904,1760943045217,-210.63753227,0.00034115,30]
[391875905,1760943045227,-153.71087954,0.00034115,30]
[391875906,1760943045236,-208.71064386,0.0003417,30]
[391875907,1760943045245,-155.601027,0.00034199,20]
[391875908,1760943045255,-178.0,0.00034212,2]
[391875909,1760943045263,-168.0,0.00034245,2]
[391875910,1760943045272,-2999.0,0.00034246,120]
[391875911,1760943045282,-504.33275469,0.00034295,5]
[391875912,1760943045291,-1000.0,0.00034528,4]
[391875913,1760943045300,-264.0,0.00034728,2]
[391875914,1760943045310,-168.0,0.00034735,2]
[391875915,1760943045319,-178.0,0.00034767,2]
[391875916,1760943045328,-151.0,0.000348,18]
[391875917,1760943045338,-178.0,0.00034861,7]
[391875918,1760943045347,-160.05607692,0.00034873,2]
[391875919,1760943045356,-500.31361839,0.00034873,5]
[391875920,1760943045365,-500.37546093,0.00034873,5]
[391875921,1760943045374,-610.50807561,0.000349,120]
[391875922,1760943045383,-560.89172555,0.000349,120]
[391875923,1760943045392,-1045.51535246,0.000349,120]
[391875924,1760943045402,-2999.0,0.00034931,120]
[391875925,1760943045411,-18215.186061,0.00035085,2]
[391875926,1760943045420,-1866.42,0.00035162,2]
[391875927,1760943045430,-155.601027,0.00035278,15]
[391875928,1760943045439,-156.701887,0.00035278,15]
[391875929,1760943045449,-155.601027,0.00035289,20]
[391875930,1760943045458,-156.701887,0.00035289,20]
[391875931,1760943045467,-200.0,0.000353,120]
[391875932,1760943045477,-600.0,0.00035336,7]
[391875933,1760943045486,-438.0,0.00035375,30]
[391875934,1760943045496,-500.0,0.00035375,30]
[391875935,1760943045505,-151.0,0.000354,16]
[391875936,1760943045514,-600.0,0.00035419,2]
[391875937,1760943045523,-438.0,0.0003543,30]
[391875938,1760943045532,-500.0,0.0003543,30]
[391875939,1760943045542,-3131.0,0.00035456,3]
[391875940,1760943045551,-438.0,0.00035485,30]
[391875941,1760943045560,-599.0,0.00035485,30]
[391875942,1760943045569,-153.0,0.00035493,2]
[391875943,1760943045578,-153.0,0.00035493,2]
[391875944,1760943045587,-153.0,0.00035493,2]
[391875945,1760943045596,-153.0,0.00035493,2]
[391875946,1760943045605,-153.0,0.00035494,2]
[391875947,1760943045614,-153.0,0.00035494,2]
[391875948,1760943045624,-153.0,0.00035499,2]
[391875949,1760943045633,-153.0,0.000355,2]
[391875950,1760943045642,-153.0,0.000355,2]
[391875951,1760943045651,-501.401,0.00035511,7]
[391875952,1760943045660,-438.0,0.00035539,30]
[391875953,1760943045670,-438.0,0.00035594,30]
[391875954,1760943045679,-3354.53,0.000356,14]
[391875955,1760943045688,-2999.0,0.00035616,120]
[391875956,1760943045697,-438.0,0.00035649,30]
[391875957,1760943045706,-438.0,0.00035704,30]
[391875958,1760943045715,-367.6918536,0.00035725,2]
[391875959,1760943045724,-438.0,0.00035759,30]
[391875960,1760943045733,-438.0,0.00035813,30]
[391875961,1760943045743,-438.0,0.00035868,30]
[391875962,1760943045752,-438.0,0.00035923,30]
[391875963,1760943045761,-150.0,0.00035973,5]
[391875964,1760943045770,-152.75385122,0.00035973,5]
[391875965,1760943045779,-300.0,0.00035973,5]
[391875966,1760943045788,-438.0,0.00035978,30]
[391875967,1760943045798,-18215.186061,0.0003599,3]
[391875968,1760943045807,-5000.0,0.00036,2]
[391875969,1760943045816,-15233.26,0.00036,14]
[391875970,1760943045825,-155.0,0.00036,30]
[391875971,1760943045834,-438.0,0.00036033,30]
[391875972,1760943045843,-438.0,0.00036087,30]
[391875973,1760943045852,-500.0,0.000361,5]
[391875974,1760943045861,-166.88761847,0.00036137,30]
[391875975,1760943045869,-438.0,0.00036142,30]
[391875976,1760943045879,-438.0,0.00036197,30]
[391875977,1760943045888,-438.0,0.00036252,30]
[391875978,1760943045897,-2999.0,0.00036301,120]
[391875979,1760943045906,-166.88761847,0.00036301,30]
[391875980,1760943045915,-155.601027,0.00036304,2]
[391875981,1760943045924,-156.701887,0.00036304,2]
[391875982,1760943045933,-438.0,0.00036307,30]
[391875983,1760943045943,-1000.0,0.00036352,4]
[391875985,1760943045952,-438.0,0.00036361,30]
[391875986,1760943045961,-1152.0,0.00036363,2]
[391875987,1760943045970,-155.601027,0.00036379,20]
[391875988,1760943045980,-156.701887,0.00036379,20]
[391875989,1760943045989,-438.0,0.00036416,30]
[391875990,1760943045999,-503.5418862,0.00036456,2]
[391875991,1760943046008,-12348.0882773,0.00036456,2]
[391875992,1760943046016,-2091.9647294,0.00036456,2]
[391875993,1760943046029,-166.88761847,0.00036466,30]
[391875994,1760943046038,-438.0,0.00036471,30]
[391875995,1760943046047,-250.0,0.00036521,5]
[391875996,1760943046056,-438.0,0.00036526,30]
[391875997,1760943046067,-438.0,0.0003658,30]
[391875998,1760943046076,-200.26514217,0.00036603,30]
[391875999,1760943046085,-438.0,0.00036635,30]
[391876000,1760943046094,-166.88761847,0.00036658,30]
[391876001,1760943046104,-155.601027,0.00036789,60]
[391876002,1760943046114,-166.88761847,0.00036822,30]
[391876003,1760943046123,-2999.0,0.00036986,120]
[391876004,1760943046132,-166.88761847,0.00036986,30]
[391876005,1760943046141,-150.6267665,0.00037068,5]
[391876006,1760943046150,-200.26514217,0.00037096,30]
[391876007,1760943046159,-2099.72,0.00037116,2]
[391876008,1760943046168,-166.88761847,0.00037178,30]
[391876009,1760943046177,-200.0,0.000373,120]
[391876010,1760943046186,-166.88761847,0.00037342,30]
[391876011,1760943046195,-9114.37572793,0.00037344,2]
[391876012,1760943046204,-2609.52677127,0.00037397,5]
[391876013,1760943046214,-155.0,0.00037397,30]
[391876014,1760943046223,-190.75,0.000374,2]
[391876015,1760943046232,-612.541239,0.00037434,3]
[391876016,1760943046242,-600.0,0.0003744,2]
[391876017,1760943046252,-550194.79595059,0.00037444,7]
[391876020,1760943046265,-35598.42754,0.00037444,7]
[391876025,1760943106211,417.15472785,0.00024141,2]
[391876026,1760943116804,150.0,0.00021711,2]
[391876027,1760943117229,199.37,0.00023685,2]
[391876028,1760943196273,150.0,0.00021595,2]
[391876029,1760943196685,190.47,0.00023559,2]
[391876030,1760943274263,150.0,0.00021503,2]
[391876031,1760943274674,181.81,0.00023457,2]
[391876032,1760943332596,2381.83999733,0.00024,2]
[391876033,1760943332621,10000.01,0.00024,2]
[391876034,1760943332644,10000.01,0.00024,2]
[391876035,1760943332668,10000.01,0.00024,2]
[391876036,1760943332692,10000.01,0.00024,2]
[391876037,1760943332715,5420.39000267,0.00024,2]
[391876038,1760943352674,150.0,0.0002152,2]
[391876039,1760943353225,173.36,0.00023476,2]
[391876040,1760943360997,4256.25999733,0.00024,2]
[391876041,1760943361019,5743.75000267,0.00024,2]
[391876042,1760943385696,4256.25999733,0.00024,2]
[391876043,1760943385719,5743.75000267,0.00024,2]
[391876044,1760943389116,300.0,0.00024,2]
[391876045,1760943400236,300.0,0.00024,2]
[391876046,1760943406262,3656.25999733,0.00024,2]
[391876047,1760943406284,6343.75000267,0.00024,2]
[391876048,1760943411183,300.0,0.00024,2]
[391876049,1760943422669,300.0,0.00024,2]
[391876050,1760943431729,150.0,0.00021839,2]
[391876051,1760943432162,165.13,0.00023825,2]
[391876056,1760943449331,2741.12999733,0.00024,2]
[391876057,1760943449354,7258.88000267,0.00024,2]
[391876058,1760943457352,-168.0,0.00024456,2]
[391876065,1760943486962,2741.12999733,0.00024,2]
[391876066,1760943486987,7258.88000267,0.00024,2]
[391876067,1760943502645,2741.12999733,0.00024141,2]
[391876068,1760943502667,2008.93201205,0.00024141,2]
[391876069,1760943510087,392.0189,0.00033863,60]
[391876070,1760943511388,150.0,0.00021764,2]
[391876071,1760943511800,157.11,0.00023743,2]
[391876072,1760943553300,5000.0,0.00024141,2]
[391876073,1760943570861,300.0,0.000237,2]
[391876074,1760943572518,546.2785,0.00033882,60]
[391876075,1760943575772,2383.96798795,0.00024141,2]
[391876076,1760943575796,2616.03201205,0.00024141,2]
[391876077,1760943589847,150.0,0.00021652,2]
[391876078,1760943590275,150.0,0.0002362,2]
[391876079,1760943598162,5000.0,0.00024141,2]
[391876086,1760943620673,2083.97798795,0.00024141,2]
[391876087,1760943620697,2916.02201205,0.00024141,2]
[391876089,1760943629024,300.0,0.000241,2]
[391876090,1760943640016,300.0,0.000241,2]
[391876091,1760943643151,5000.0,0.00024141,2]
[391876092,1760943651176,1483.98798795,0.00024141,2]
[391876093,1760943651200,3516.01201205,0.00024141,2]
[391876095,1760943667169,5000.0,0.00024141,2]
[391876096,1760943668527,150.0,0.00021559,2]
[391876097,1760943668935,150.0,0.00023519,2]
[391876098,1760943675099,1183.99798795,0.00024141,2]
[391876099,1760943675122,3816.00201205,0.00024141,2]
[391876100,1760943689006,300.0,0.000241,2]
[391876101,1760943690522,5000.0,0.00024141,2]
[391876102,1760943698997,884.00798795,0.00024141,2]
[391876103,1760943699021,4115.99201205,0.00024141,2]